Cogmind - Beta 12 X6 @@@ ROGUE MODE // 2023.01.23 @ 12:54:21 Player: youngster Result: Destroyed by H-77 Assassin with High-powered Shotgun Performance ------------- Evolutions (7) 3500 Regions Visited (30) 6000 Robots Destroyed (297) 1485 Value Destroyed (8350) 8350 Prototype IDs (97) 1940 Alien Tech Used (2) 400 Bonus (3220) 3220 TOTAL SCORE: 24895 Bonus ------- High Alert Combat Kills 139 Follower Combat Kills 1522 Entered Garrisons 200 Network Hubs Disabled 200 Met Data Miner 300 Met Zhirov 300 Met Warlord at Base 500 MAIN.C Attacked Warlord 500 Warlord Defense Kills 1974 Friendly Fire -2415 Cogmind --------- Core Integrity 0/1300 Matter 184/300 Energy 99/100 System Corruption 10% Temperature Cool (0) Movement Core (50) Location -3/Garrison Parts ------- > --- POWER (2) -------- (None) > --- PROPULSION (7) --- (None) > --- UTILITY (10) ----- Graphene Brace Authchip [R/Combat] Authchip [R/Combat] Authchip [R/Combat] Authchip [R/Combat] Authchip [R/Combat] Authchip [R/Combat] Authchip [R/Combat] > --- WEAPON (2) ------- (None) > --- INVENTORY (5) ---- YI-UF0's Bottomless Matter Pit (1500) Advanced Transmission Jammer Antimissile System Advanced Trap Extractor (2/8 Dirty Bomb) HERF Cannon Peak State ------------ > --- POWER ------------ Neutrino Core Light Antimatter Reactor > --- PROPULSION ------- Linear Gravjet Combat Gravmag System Combat Gravmag System Combat Gravmag System Cooled Antigrav System Cooled Antigrav System > --- UTILITY ---------- Experimental Energy Well Enhanced Optical Array Improved Signal Interpreter Advanced ECM Suite Layered Light Armor Plating Makeshift Hacking Suite Advanced Hacking Suite Advanced Hacking Suite Advanced Hacking Suite > --- WEAPON ----------- Neutron Cannon RU-N14's Throwing Claymores v3 > --- INVENTORY -------- YI-UF0's Bottomless Matter Pit Makeshift Sensor Array Authchip [Storage] Advanced Trap Extractor Precision Rocket Launcher [Rating: 121] Favorites ----------- Power Light Ion Engine Engine Light Ion Engine Power Core Light Nuclear Core Reactor Light Antimatter Reactor Propulsion Combat Gravmag System Treads Light Treads Wheel Compact Wheel Hover Unit Combat Gravmag System Flight Unit Improved VTOL Module Utility Advanced Hacking Suite Device Makeshift Sensor Array Storage Huge Storage Unit Processor Enhanced Optical Array Hackware Advanced Hacking Suite Protection Light Armor Plating Weapon Improved EM Shotgun Energy Gun Improved EM Shotgun Energy Cannon Neutron Cannon Ballistic Gun Minigun Launcher Tiamat Missile Launcher Special Weapon RU-N14's Throwing Claymores v3 Impact Weapon Mace Slashing Weapon Power Sword Piercing Weapon Force Lance Special Melee Weapon Advanced Datajack Build | -11 -10 -10 -10 -9 -8 -8 -7 -7 -7 -7 -6 -6 -6 -6 -6 -6 -6 -6 -5 -5 -5 -5 -4 -4 -4 -4 -4 -3 -3 -3 ------- Run | Jun Mat Min Exi Min Mat Sto Fac Low Low Dat Pro Fac Was Fac Ext Cet Arc Hub Fac Upp Upp War Pro Fac Upp Upp Zhi Pro Res Gar Slots Evolved 14 | . . . . . 4 . 2 . . . . 2 . . . . . . 2 . . . . 2 . . . . 2 . Power 1 | . . . . . . . . . . . . . . . . . . . . . . . . 1 . . . . . . Propulsion 5 | . . . . . 2 . 1 . . . . . . . . . . . 1 . . . . . . . . . 1 . Utility 8 | . . . . . 2 . 1 . . . . 2 . . . . . . 1 . . . . 1 . . . . 1 . Weapon . | . . . . . . . . . . . . . . . . . . . . . . . . . . . . . . . Parts Attached 497 | 9 18 14 1 8 81 32 35 8 4 1 14 36 7 6 12 6 28 3 41 4 12 13 5 37 14 7 9 9 12 11 Power 38 | 1 1 . . 1 4 3 1 1 . 1 3 3 . 1 1 2 4 . 5 . . 2 . 3 . . 1 . . . Engine 16 | 1 1 . . 1 3 3 . . . . . 1 . . 1 1 4 . . . . . . . . . . . . . Core 17 | . . . . . 1 . 1 1 . 1 3 2 . 1 . . . . 5 . . . . 2 . . . . . . Reactor 5 | . . . . . . . . . . . . . . . . 1 . . . . . 2 . 1 . . 1 . . . Propulsion 92 | 2 3 2 . 2 21 11 7 . . . . 1 . 1 1 . 10 . 11 . . 2 . 5 . 3 3 3 4 . Treads 42 | 2 1 1 . 1 18 8 . . . . . . . . . . . . 4 . . . . 2 . 2 2 . 1 . Leg . | . . . . . . . . . . . . . . . . . . . . . . . . . . . . . . . Wheel 9 | . 2 1 . 1 3 . . . . . . . . . . . . . . . . . . . . . . . 2 . Hover 24 | . . . . . . 1 . . . . . . . . . . 6 . 6 . . 2 . 3 . 1 1 3 1 . Flight 17 | . . . . . . 2 7 . . . . 1 . 1 1 . 4 . 1 . . . . . . . . . . . Utility 228 | 2 5 4 . 1 22 6 23 6 2 . 9 27 5 4 6 1 6 3 14 3 7 6 5 27 9 2 3 3 6 11 Device 135 | 1 2 3 . . 10 3 16 5 1 . 5 12 3 3 4 . 4 1 10 2 7 3 5 17 6 2 2 2 4 2 Storage 12 | 1 1 . . . . . 2 . . . . . 1 . . . 1 . 1 . . 2 . 2 1 . . . . . Processor 11 | . . . . . 1 . 3 . . . . 1 1 . 1 . . . . . . 1 . 2 . . . 1 . . Hackware 28 | . . . . . 1 . . . . . . 8 . 1 . . . 1 2 . . . . 4 . . . . 2 9 Protection 42 | . 2 1 . 1 10 3 2 1 1 . 4 6 . . 1 1 1 1 1 1 . . . 2 2 . 1 . . . Artifact . | . . . . . . . . . . . . . . . . . . . . . . . . . . . . . . . Weapon 139 | 4 9 8 1 4 34 12 4 1 2 . 2 5 2 . 4 3 8 . 11 1 5 3 . 2 5 2 2 3 2 . Energy Gun 24 | 3 7 3 1 2 7 . . . 1 . . . . . . . . . . . . . . . . . . . . . Energy Cannon 20 | . . . . . . . . . . . . . 1 . 1 . 5 . 9 1 2 1 . . . . . . . . Ballistic Gun 22 | 1 1 2 . . 14 4 . . . . . . . . . . . . . . . . . . . . . . . . Ballistic Cannon . | . . . . . . . . . . . . . . . . . . . . . . . . . . . . . . . Launcher 28 | . 1 1 . 1 5 3 1 . . . 1 2 . . . 1 . . 1 . 3 . . 1 2 1 1 2 1 . Special Weapon 17 | . . . . 1 2 . . . . . . 2 . . . 2 3 . . . . 2 . . 3 . 1 1 . . Impact Weapon 2 | . . . . . . . 1 . . . . . . . . . . . . . . . . . . 1 . . . . Slashing Weapon 16 | . . . . . 4 5 1 1 1 . 1 1 1 . . . . . . . . . . . . . . . 1 . Piercing Weapon 1 | . . . . . . . . . . . . . . . . . . . . . . . . 1 . . . . . . Special Melee Weapon 9 | . . 2 . . 2 . 1 . . . . . . . 3 . . . 1 . . . . . . . . . . . Unidentified Prototypes 21 | . . 1 . . 1 5 1 . . . . . 1 . . . . . 2 . . 6 . . . 1 1 1 1 . Parts Lost 79 | . 2 . . . 15 9 . 2 . . . . . 1 2 . 3 10 1 . . . . 6 . 8 . 4 14 2 Power 7 | . . . . . 2 . . . . . . . . . 1 . . 1 . . . . . 1 . 1 . . 1 . Propulsion 29 | . . . . . 4 4 . . . . . . . 1 1 . 2 5 1 . . . . 1 . 1 . 2 7 . Utility 27 | . 2 . . . 6 4 . . . . . . . . . . . 2 . . . . . 3 . 4 . 1 3 2 Weapon 16 | . . . . . 3 1 . 2 . . . . . . . . 1 2 . . . . . 1 . 2 . 1 3 . Highest Loss Streak 10 | . 1 . . . 5 2 . 2 . . . . . 1 1 . 2 10 1 . . . . 2 . 5 . 2 6 2 To Critical Strikes 2 | . . . . . . . . . . . . . . . . . . . . . . . . 1 . 1 . . . . Average Slot Usage (%) 92 | . 100 100 100 100 96 99 99 91 95 95 92 96 97 94 98 99 85 94 72 94 94 96 100 92 80 67 82 78 37 28 Engine 5 | . 14 14 14 14 8 9 . . . . . . . . 1 6 4 5 . . . . . . . . . . . . Core 1 | . . . . . . . 6 6 7 6 6 5 6 5 2 . . . 2 5 5 3 . 2 5 . . . . . Treads 11 | . 18 14 14 14 32 35 . . . . . . . . . . . . 7 . . . . . . . 7 8 1 . Wheel 3 | . 9 13 14 13 3 . . . . . . . . . . . . . . . . . . . . . . . 2 . Hover 7 | . . . . . . . . . . . . . . . . . 9 30 10 29 29 32 35 29 21 18 21 16 8 . Flight 7 | . . . . . . . 38 38 38 38 38 33 33 27 33 33 18 . . . . . . . . . . . . . Device 6 | . 9 12 . . 7 11 6 6 7 . 5 5 3 6 2 . 1 4 6 5 5 3 5 7 13 9 11 9 4 3 Storage 7 | . 14 14 14 14 9 9 7 7 7 7 7 6 7 6 6 6 2 6 . . . 1 . 3 5 5 5 5 2 . Processor 6 | . . . . . 3 . 14 15 15 15 15 13 13 13 13 13 13 13 11 11 11 11 11 10 10 9 5 9 3 . Hackware 10 | . . . . . 2 9 7 7 7 7 7 20 20 20 20 20 20 20 23 23 23 23 23 20 15 15 15 15 9 23 Protection 5 | . 4 1 14 14 10 6 . . . 7 1 . . . 3 5 3 1 . 4 5 5 5 3 . . 3 . . . Energy Gun 6 | . 22 26 15 26 1 . . . 1 . . . . . . . . . . . . . . . . . . . . . Ballistic Gun 3 | . 3 . . . 15 13 . . . . . . . . . . . . . . . . . . . . . . . . Special Weapon 1 | . . . . 1 . . . . . . . 3 6 6 1 4 4 4 . . . 2 5 4 2 . 3 1 . . Slashing Weapon 1 | . . . . . . 3 1 6 9 11 7 6 6 6 6 6 1 . . . . . . . . . . . . . Special Melee Weapon 1 | . . . 12 . . . 6 . . . . . . . 3 . . . 4 5 5 2 . . . . . . . . Naked Turns 30 | . . . . . . . . . . . . . . . . . . . . . . . . . . . . . 24 6 Heaviest Build 119 | 13 92 92 92 92 119 105 20 17 21 17 24 25 22 19 25 34 29 29 25 25 25 37 40 60 60 60 49 41 41 1 Greatest Support 86 | 40 40 40 16 16 84 86 25 21 26 26 26 26 26 26 27 28 45 45 65 37 37 50 49 80 51 57 53 80 80 3 Greatest Overweight (x) 12 | . 5 5 5 5 6 1 . . . . . 1 . . 6 1 8 1 2 . . . . 1 1 12 1 . 6 . Average Overweight (x) . | . 3 4 5 5 3 1 . . . . . . . . . . . . . . . . . . . . . . . . Largest Inventory Capacity 25 | 8 25 25 25 25 25 25 25 8 8 8 8 8 8 8 8 8 8 8 5 5 5 5 5 15 15 15 15 15 15 5 Average Capacity 16 | 7 20 25 25 25 25 25 8 8 8 8 8 8 8 8 8 8 6 7 5 5 5 5 5 12 15 15 15 15 11 5 Most Carried 25 | 4 23 25 25 25 25 25 23 8 8 8 8 8 8 8 8 8 8 8 5 5 5 5 5 13 15 15 15 15 15 5 Average Carried 15 | 2 15 24 24 24 24 24 8 7 7 7 7 7 7 7 8 7 6 7 4 4 4 4 4 8 14 14 13 14 10 4 Final Capacity 25 | 8 25 25 25 25 25 25 8 8 8 8 8 8 8 8 8 8 8 5 5 5 5 5 5 15 15 15 15 15 5 5 Final Carried 25 | 4 23 25 25 25 25 24 8 8 8 8 8 8 8 8 8 8 8 5 4 5 5 4 5 13 15 15 15 13 5 5 Class Distribution -------------------- 40% | Mutant 21% | Hacker-Scout 11% | Hacker-Mutant 6% | Scout 5% | Commander-Mutant 4% | Hacker-Sprinter Dominant Class ---------------- Mutant | -10/Materials Mutant | -10/Mines Commander-Mutant | -10/Exiles Mutant | -9/Mines Mutant | -8/Materials Mutant | -8/Storage Scout | -7/Factory Scout | -7/Lower Caves Scout | -7/Lower Caves Sprinter | -7/Data Miner Scout | -6/Proximity Caves Hacker-Scout | -6/Factory Hacker-Scout | -6/Waste Hacker-Scout | -6/Factory Hacker-Sprinter | -6/Extension Hacker-Sprinter | -6/Cetus Hacker-Mutant | -6/Archives Hacker-Mutant | -6/Hub_04(d) Hacker-Mutant | -5/Factory Hacker-Scout | -5/Upper Caves Hacker-Scout | -5/Upper Caves Hacker-Scout | -5/Warlord Hacker-Scout | -4/Proximity Caves Hacker-Scout | -4/Factory Machinist-Ninja | -4/Upper Caves Hacker-Mutant | -4/Upper Caves Hacker-Mutant | -4/Zhirov Hacker-Mutant | -3/Proximity Caves Hacker-Mutant | -3/Research Mutant | -3/Garrison Resources | -11 -10 -10 -10 -9 -8 -8 -7 -7 -7 -7 -6 -6 -6 -6 -6 -6 -6 -6 -5 -5 -5 -5 -4 -4 -4 -4 -4 -3 -3 -3 ----------- Run | Jun Mat Min Exi Min Mat Sto Fac Low Low Dat Pro Fac Was Fac Ext Cet Arc Hub Fac Upp Upp War Pro Fac Upp Upp Zhi Pro Res Gar Matter Collected 8908 | 219 505 1649 10 90 1570 836 437 183 42 . 58 455 179 . 206 40 471 5 155 280 89 261 37 348 248 185 90 57 203 . Remotely . | . . . . . . . . . . . . . . . . . . . . . . . . . . . . . . . Salvage Created 10897 | 52 1075 1498 50 134 2325 1056 280 176 . . 11 695 . . 576 109 607 458 171 35 127 316 37 497 33 104 275 63 137 . Parts 607 | 7 68 88 . 8 148 57 2 4 . . 2 46 . . 16 9 47 17 6 1 16 15 2 18 4 1 16 4 5 . Haulers Intercepted 7 | . 1 . . . 2 2 . . . . . . . . 2 . . . . . . . . . . . . . . . Recyclers Shooed 11 | 1 1 1 . 1 5 . . . . . . 1 . . . . . . 1 . . . . . . . . . . . Parts Field Recycled . | . . . . . . . . . . . . . . . . . . . . . . . . . . . . . . . Retrieved Matter . | . . . . . . . . . . . . . . . . . . . . . . . . . . . . . . . Parts Self-Destructed 13 | . . . . . . . . . . . . . . . . . . . . . 7 . 1 . 1 . 1 3 . . Prevented 11 | . . . . . . . . . . . . . . . . . . . . . . . . . . 3 8 . . . Kills | -11 -10 -10 -10 -9 -8 -8 -7 -7 -7 -7 -6 -6 -6 -6 -6 -6 -6 -6 -5 -5 -5 -5 -4 -4 -4 -4 -4 -3 -3 -3 ------- Run | Jun Mat Min Exi Min Mat Sto Fac Low Low Dat Pro Fac Was Fac Ext Cet Arc Hub Fac Upp Upp War Pro Fac Upp Upp Zhi Pro Res Gar Combat Hostiles Destroyed 176 | . 17 4 . 3 49 18 . 3 . . 1 5 . . 1 3 4 4 3 . 14 21 . 13 4 2 . 5 2 . Melee 11 | . . . . . . 5 . 1 . . . 1 . . . . 1 . . . . . . 1 . . . . 2 . Guns 63 | . 12 1 . 2 38 10 . . . . . . . . . . . . . . . . . . . . . . . . Cannons 9 | . . . . . . . . . . . . . . . 1 . 3 . 3 . . 2 . . . . . . . . AOE 92 | . 5 3 . 1 11 3 . 2 . . 1 4 . . . 3 . 3 . . 14 19 . 12 4 2 . 5 . . Classes Destroyed 24 | 1 8 . . 1 5 1 . 2 . . . 1 . . . . . 2 . . . 1 1 1 . . . . . . Worker 18 | . 4 8 . 1 1 1 . . . . . 1 . . . . . 1 . . . . . 1 . . . . . . Builder 16 | . 1 4 . 1 2 . . . . . . 5 . . . . . 2 . . . . . 1 . . . . . . Tunneler 13 | 2 1 8 . 1 . . . . . . . . . . . . . . 1 . . . . . . . . . . . Hauler 7 | . 1 . . . 2 2 . . . . . . . . 2 . . . . . . . . . . . . . . . Recycler 30 | . 3 11 . . 5 1 3 . . . . 3 . . 2 . . . . . . . . 2 . . . . . . Carrier 1 | . . . . . . . . . . . . . . . . . . 1 . . . . . . . . . . . . Minesweeper 3 | . . . . . . . . . . . . . . . . . . . . . . . 2 . 1 . . . . . Mechanic 2 | . . . . . . . . . . . . 1 . . . . . . . . . . . 1 . . . . . . Operator 13 | . 1 . . . 2 1 . . . . . 1 . . . . 7 1 . . . . . . . . . . . . Watcher 15 | . 3 . . . 2 1 2 . . . . 3 . . 1 . . 1 1 . . . . 1 . . . . . . Swarmer 62 | . 5 4 . 2 13 . . . . . 1 4 . . . 3 . . 1 . 14 1 . 5 4 . . 5 . . Cutter 5 | . . . . . 4 . . . . . . . . . . . . . . . . . . . . . . . 1 . Saboteur 3 | . . . . . . . . . . . . . . . . . . . . . . 3 . . . . . . . . Grunt 75 | . 12 . . . 19 13 . 3 . . . 1 . . . . . 3 2 . . 16 . 4 . . . . 2 . Brawler 4 | . . . . . 2 . . . . . . . . . 1 . . . . . . . . 1 . . . . . . Duelist 1 | . . . . . 1 . . . . . . . . . . . . . . . . . . . . . . . . . Protector 2 | . . . . . . 1 . . . . . . . . . . . . . . . 1 . . . . . . . . Sentry 17 | . . . . . 9 3 . . . . . . . . . . 4 . . . . . . 1 . . . . . . Demolisher 1 | . . . . 1 . . . . . . . . . . . . . . . . . . . . . . . . . . Specialist 1 | . . . . . . . . . . . . . . . . . . 1 . . . . . . . . . . . . Hunter 4 | . . . . . 1 1 . . . . . . . . . . . . . . . . . . . 2 . . . . Programmer 2 | . . . . . . . . . . . . . . . . . . . . . . . . 2 . . . . . . Decomposer 3 | . . . . . . . . 1 . . . . . . . . . . . 2 . . . . . . . . . . Samaritan 1 | . . . . . . . . 1 . . . . . . . . . . . . . . . . . . . . . . Tinkerer 1 | . . . . . . . . 1 . . . . . . . . . . . . . . . . . . . . . . Best Kill Streak 15 | 2 7 5 . 2 9 3 3 3 . . 1 7 . . 2 3 3 10 3 . 5 15 1 6 4 2 . 3 1 . Combat Bots Only 15 | . 4 3 . 1 7 3 . 3 . . 1 4 . . 1 3 1 4 3 . 5 15 . 6 4 2 . 3 1 . Max Kills in Single Turn 7 | 1 2 3 . 2 3 1 1 2 . . 1 3 . . 1 2 1 7 2 1 5 6 1 2 3 1 . 2 1 . Gunslinging 1 | . 1 . . . . . . . . . . . . . . . . . . . . . . . . . . . . . Exploded 6 | . 2 2 . 1 2 1 . 2 . . 1 2 . . . 2 . 3 . . 5 6 . 2 3 1 . 2 . . Melee 1 | . . . . . . 1 . 1 . . . 1 . . . . 1 . . . . . . 1 . . . . 1 . Uniques/NPCs Destroyed 2 | . . 1 . . . . . . . . . . . . . 1 . . . . . . . . . . . . . . YI-UF0 (-10/Mines) A7 (-6/Cetus) Combat | -11 -10 -10 -10 -9 -8 -8 -7 -7 -7 -7 -6 -6 -6 -6 -6 -6 -6 -6 -5 -5 -5 -5 -4 -4 -4 -4 -4 -3 -3 -3 -------- Run | Jun Mat Min Exi Min Mat Sto Fac Low Low Dat Pro Fac Was Fac Ext Cet Arc Hub Fac Upp Upp War Pro Fac Upp Upp Zhi Pro Res Gar Damage Taken 15094 | . 416 76 . 90 3552 1433 71 138 . 43 118 54 . 67 563 309 407 1115 722 24 168 257 . 1585 108 1085 . 549 1983 161 Core 3192 | . 36 14 . 6 115 65 15 . . . 29 . . . 151 37 73 469 199 . . 108 . 245 18 218 . 86 1181 127 Absorbed by Shields 343 | . . . . . 231 17 . . . . . . . . 18 29 . . . . . 48 . . . . . . . . Reduced by Siege Mode 40 | . . . . . . . . . . . . . . . . . . . 40 . . . . . . . . . . . Redirected to Shielding 102 | . . . . . 102 . . . . . . . . . . . . . . . . . . . . . . . . . Regen/Repaired (Parts) 974 | . 2 . . . . . . . . . . 184 16 39 . 39 264 4 50 . . . . 239 . . . . 137 . Core Remaining (%) 66 | 100 . . . 77 . 67 . . . . 93 . . . . . . 14 . . . . 69 . . . . 45 . . Volleys Fired 702 | 6 59 51 5 11 161 48 . 4 . . 1 7 . . 3 9 114 16 30 10 18 25 12 75 3 5 25 4 . . Largest 2 | 2 2 2 2 2 2 2 . 1 . . 1 1 . . 1 1 1 1 1 1 1 1 1 1 1 1 1 1 . . Hottest 105 | 70 90 90 90 100 100 50 . 36 . . 39 43 . . 105 43 105 35 90 90 90 90 90 90 43 46 20 46 . . Shots Fired 1010 | 12 110 100 10 18 309 90 . 4 . . 1 7 . . 3 9 114 16 30 10 18 25 12 75 3 5 25 4 . . Gun 625 | 12 110 98 10 14 295 86 . . . . . . . . . . . . . . . . . . . . . . . . Cannon 194 | . . . . . . . . . . . . . . . 3 . 34 16 30 10 12 15 12 62 . . . . . . Launcher 51 | . . 2 . 1 10 4 . 4 . . 1 6 . . . 2 . . . . 6 . . 3 3 5 . 4 . . Special 140 | . . . . 3 4 . . . . . . 1 . . . 7 80 . . . . 10 . 10 . . 25 . . . Kinetic 399 | 6 32 11 . . 264 86 . . . . . . . . . . . . . . . . . . . . . . . . Thermal 330 | 6 10 . . 3 4 . . . . . . 1 . . 3 7 114 16 30 10 12 15 12 62 . . 25 . . . Explosive 71 | . . 2 . 1 10 4 . 4 . . 1 6 . . . 2 . . . . 6 10 . 13 3 5 . 4 . . Electromagnetic 210 | . 68 87 10 14 31 . . . . . . . . . . . . . . . . . . . . . . . . . Robot Hit Streak 24 | 3 6 8 5 6 19 24 . 4 . . . . . . 5 4 15 . 13 15 . 22 4 7 3 8 20 15 . . Robot Miss Streak 6 | 5 6 3 2 2 5 1 . . . . . . . . 1 1 4 . 4 . . . 2 1 . . 1 . . . Penetration Max . | . . . . . . . . . . . . . . . . . . . . . . . . . . . . . . . Secondary Targets 10 | . 3 1 . . 6 . . . . . . . . . . . . . . . . . . . . . . . . . Max Gunslinging Chain 1 | . 1 1 . . 1 . . . . . . . . . . . . . . . . . . . . . . . . . Shots Hit Robots 749 | 4 63 69 23 9 215 91 6 13 . 1 . 21 . . 45 9 77 . 14 2 . 14 8 16 3 6 28 11 1 . Core Hits 482 | 2 44 54 5 13 119 39 1 10 . . 1 19 . . 6 6 34 10 6 . 15 46 4 29 4 3 6 5 1 . Critical Kills . | . . . . . . . . . . . . . . . . . . . . . . . . . . . . . . . Critical Parts Destroyed 3 | . . . . . 2 . . . . . . . . . . . . . . . . . . . . . 1 . . . Critical Strikes 17 | . 1 . . . 3 3 . . . . . . . . 2 . 2 . . . . 3 . 1 . . 2 . . . Burn 1 | . 1 . . . . . . . . . . . . . . . . . . . . . . . . . . . . . Destroy 2 | . . . . . 2 . . . . . . . . . . . . . . . . . . . . . . . . . Smash 1 | . . . . . . . . . . . . . . . . . . . . . . . . . . . 1 . . . Sever 13 | . . . . . 1 3 . . . . . . . . 2 . 2 . . . . 3 . 1 . . 1 . . . Melee Attacks 353 | . . 2 13 . 6 26 49 12 6 6 7 92 . 9 56 2 6 . 1 . . 7 . 18 1 9 4 11 10 . Impact 74 | . . . . . . . 43 . . . . . . . . . . . . . . . . . . 9 4 11 7 . Slashing 203 | . . . . . 5 26 5 12 6 6 7 92 . 9 25 1 6 . . . . . . . . . . . 3 . Piercing 19 | . . . . . . . . . . . . . . . . . . . . . . . . 18 1 . . . . . Sneak Attacks 88 | . . 2 10 . 3 3 5 6 . 1 . 9 . . 35 2 1 . 1 . . 7 . 2 1 . . . . . Combat Hostiles 10 | . . . 10 . . . . . . . . . . . . . . . . . . . . . . . . . . . Follow-up Attacks . | . . . . . . . . . . . . . . . . . . . . . . . . . . . . . . . Damage Inflicted 31347 | 50 1371 1345 140 260 4516 2320 341 1078 . 79 48 2078 . . 833 468 1833 1215 611 70 1379 4754 306 3404 763 655 619 775 36 . Guns 6332 | 49 1026 860 140 166 2968 1123 . . . . . . . . . . . . . . . . . . . . . . . . Cannons 2054 | . . . . . . . . . . . . . . . 62 . 980 . 449 70 . . 306 187 . . . . . . Explosions 15622 | . 345 446 . 94 1236 470 . 489 . . 48 649 . . . 346 . 1215 162 . 1379 4444 . 2487 675 589 . 548 . . Melee 5485 | . . . . . 140 722 341 589 . 79 . 1429 . . 771 55 338 . . . . . . 346 88 66 270 227 24 . Ramming 229 | 1 . 39 . . 172 5 . . . . . . . . . . . . . . . . . . . . . . 12 . Kinetic 3873 | 37 151 49 . . 2513 1123 . . . . . . . . . . . . . . . . . . . . . . . . Thermal 4226 | 12 408 296 . . 266 . . . . . . 75 . . 62 67 1495 . 611 70 . . 306 209 . . 349 . . . Explosive 13241 | . . 150 . 94 970 470 . 489 . . 48 574 . . . 346 . . . . 1379 4444 . 2465 675 589 . 548 . . Electromagnetic 3599 | . 812 811 140 166 455 . . . . . . . . . . . . 1215 . . . . . . . . . . . . Impact 928 | . . . . . . . 341 . . . . . . . . . . . . . . . . . . 66 270 227 24 . Slashing 4817 | . . . . . 140 722 . 589 . 79 . 1429 . . 771 55 338 . . . . 310 . 384 . . . . . . Piercing 434 | . . . . . . . . . . . . . . . . . . . . . . . . 346 88 . . . . . Highest Corruption 12 | . . . . . 7 7 . . . . . . . 1 9 9 9 2 . . . . . 3 3 5 5 12 10 10 Average Corruption 5 | . . . . . 4 7 . . . . . . . 1 8 9 7 1 . . . . . 2 2 5 5 8 8 10 Corruption Purged 13 | . . . . . . . . . . . . . . 1 . . 9 . . . . . . . 3 . . . . . Corruption Blocked . | . . . . . . . . . . . . . . . . . . . . . . . . . . . . . . . Effects 185 | . . . . . 85 28 . . . . . . . . 12 6 24 . . . . . . 3 8 . 3 6 7 3 Message Errors 41 | . . . . . 20 4 . . . . . . . . 4 2 9 . . . . . . . . . . 1 1 . Matter Fused 45 | . . . . . 17 10 . . . . . . . . 3 1 7 . . . . . . 1 1 . . 2 2 1 Heat Flow Errors 27 | . . . . . 12 5 . . . . . . . . 1 1 3 . . . . . . . 2 . . . 3 . Energy Discharges 26 | . . . . . 11 3 . . . . . . . . 2 . 2 . . . . . . 1 3 . 2 1 1 . Parts Rejected 2 | . . . . . 1 . . . . . . . . . . . 1 . . . . . . . . . . . . . Data Loss (minor) 26 | . . . . . 15 3 . . . . . . . . . 1 1 . . . . . . 1 2 . 1 1 . 1 Data Loss (major) 10 | . . . . . 4 1 . . . . . . . . 2 . 1 . . . . . . . . . . 1 . 1 Misfires 5 | . . . . . 4 1 . . . . . . . . . . . . . . . . . . . . . . . . Alerts 2 | . . . . . 1 . . . . . . . . . . 1 . . . . . . . . . . . . . . Weapon Failures 1 | . . . . . . 1 . . . . . . . . . . . . . . . . . . . . . . . . Overload Shots 8 | . . . . . . . . . . . . . . . 2 . 6 . . . . . . . . . . . . . Effects 2 | . . . . . . . . . . . . . . . . . 2 . . . . . . . . . . . . . Energy Bleed 1 | . . . . . . . . . . . . . . . . . 1 . . . . . . . . . . . . . Heat Surge 1 | . . . . . . . . . . . . . . . . . 1 . . . . . . . . . . . . . Overflow Damage 2142 | . . 66 . . 45 67 149 64 . 19 . 404 . . 57 10 165 115 136 57 41 157 9 180 177 126 62 36 . . Projectiles 182 | . . . . . . . . . . . . . . . . . 75 . 3 57 . . 9 32 . . 6 . . . Explosions 961 | . . 66 . . 8 . . 16 . . . . . . . 10 . 115 133 . 41 157 . 148 177 70 . 20 . . Melee 999 | . . . . . 37 67 149 48 . 19 . 404 . . 57 . 90 . . . . . . . . 56 56 16 . . Knockbacks 5 | . . 1 . . 1 . 2 . . . . . . . . . . . . . . . . . . 1 . . . . Impact 5 | . . 1 . . 1 . 2 . . . . . . . . . . . . . . . . . . 1 . . . . Kinetic . | . . . . . . . . . . . . . . . . . . . . . . . . . . . . . . . Secondary . | . . . . . . . . . . . . . . . . . . . . . . . . . . . . . . . Self-Inflicted Damage 1139 | . 29 47 . . 290 31 . . . . 9 . . . . 41 . 95 255 . 57 . . 32 . 220 . 32 1 . Shots 27 | . 1 1 . . 10 1 . . . . 1 . . . . 1 . 1 3 . 1 . . 1 . 5 . 1 . . Rammed 48 | 1 . 7 . . 21 1 . . . . . . . . . . . . . . . . . . . . . . 18 . Targets Rammed 53 | 1 . 7 . . 25 1 . . . . . . . . . . . . . . . . . . . . . . 19 . Kicked . | . . . . . . . . . . . . . . . . . . . . . . . . . . . . . . . Crushed 5 | . . . . . 4 . . . . . . . . . . . . . . . . . . . . . . . 1 . Highest Temperature 351 | 36 202 132 161 78 351 273 . 14 . 11 6 9 1 1 161 190 286 2 345 214 224 260 208 282 255 . . . 230 . Average Temperature 66 | 16 40 31 85 31 66 46 . 9 . 4 2 2 1 1 87 50 82 2 82 77 96 85 84 92 113 . . . 89 . Received Heat Transfer 2914 | . 126 . . . 1128 618 6 90 . . 12 . . . 97 27 81 117 126 9 . 9 . 255 . 9 . . 186 18 Effects 8 | . . . . . 4 . . . . . . . . . . . . . . . . . . 2 2 . . . . . Energy Bleed 4 | . . . . . 2 . . . . . . . . . . . . . . . . . . 2 . . . . . . Interference 3 | . . . . . 1 . . . . . . . . . . . . . . . . . . . 2 . . . . . Damage (minor) 1 | . . . . . 1 . . . . . . . . . . . . . . . . . . . . . . . . . Siege Activations 1 | . . . . . . . . . . . . . . . . . . . 1 . . . . . . . . . . . Total Turns 24 | . . . . . . . . . . . . . . . . . . . 24 . . . . . . . . . . . Longest Duration 24 | . . . . . . . . . . . . . . . . . . . 24 . . . . . . . . . . . Robots Corrupted 4 | . . . 1 . . . . . . . . . . . . . . 3 . . . . . . . . . . . . Combat Hostiles 1 | . . . . . . . . . . . . . . . . . . 1 . . . . . . . . . . . . Parts Fried 22 | . 4 4 . . 1 . 5 . . . . . . . . . . 7 . . . 1 . . . . . . . . Impact Corruptions 12 | . . . . . 1 . 5 . . . . . . . . . . . . . . . . . . 1 2 3 . . Robots Melted . | . . . . . . . . . . . . . . . . . . . . . . . . . . . . . . . Combat Hostiles . | . . . . . . . . . . . . . . . . . . . . . . . . . . . . . . . Parts Melted 9 | . . . . . . . . . . . . . . . . . 9 . . . . . . . . . . . . . Heat Transferred 6324 | 37 759 350 . . 250 . . . . . . 50 . . 80 110 3169 . 581 . . . . 50 . . 888 . . . Parts Sabotaged . | . . . . . . . . . . . . . . . . . . . . . . . . . . . . . . . Parts Stolen . | . . . . . . . . . . . . . . . . . . . . . . . . . . . . . . . Parts Stripped . | . . . . . . . . . . . . . . . . . . . . . . . . . . . . . . . Power Chain Reactions 14 | . 5 5 . 1 2 . . . . . . . . . . . . . . . . . . 1 . . . . . . Missiles Intercepted . | . . . . . . . . . . . . . . . . . . . . . . . . . . . . . . . Alert | -11 -10 -10 -10 -9 -8 -8 -7 -7 -7 -7 -6 -6 -6 -6 -6 -6 -6 -6 -5 -5 -5 -5 -4 -4 -4 -4 -4 -3 -3 -3 ------- Run | Jun Mat Min Exi Min Mat Sto Fac Low Low Dat Pro Fac Was Fac Ext Cet Arc Hub Fac Upp Upp War Pro Fac Upp Upp Zhi Pro Res Gar Peak Influence 1010 | 10 298 134 . 217 586 445 437 . . . . 374 130 141 1010 643 372 384 404 . . . . 501 . . . . 289 193 Initial 565 | . 6 52 . . 17 243 191 . . . . 144 130 91 68 565 257 29 153 . . . . . . . . . 81 193 Average 165 | 4 148 51 . 34 206 189 268 . . . . 188 130 119 316 553 196 107 282 . . . . 102 . . . . 225 192 Maximum Alert Level 3 | . 1 . . 1 2 2 2 . . . . 1 . . 3 2 1 1 2 . . . . 2 . . . . 1 . Low Security (%) 65 | 100 79 100 . 94 55 56 13 . . . . 58 100 100 45 . 64 82 9 . . . . 76 . . . . 25 100 Level 1 28 | . 20 . . 5 32 40 81 . . . . 41 . . 25 . 35 17 78 . . . . 15 . . . . 74 . Level 2 6 | . . . . . 12 3 5 . . . . . . . 24 100 . . 11 . . . . 7 . . . . . . Level 3 . | . . . . . . . . . . . . . . . 4 . . . . . . . . . . . . . . . Level 4 . | . . . . . . . . . . . . . . . . . . . . . . . . . . . . . . . Level 5 . | . . . . . . . . . . . . . . . . . . . . . . . . . . . . . . . High Security . | . . . . . . . . . . . . . . . . . . . . . . . . . . . . . . . Max Security . | . . . . . . . . . . . . . . . . . . . . . . . . . . . . . . . Sterilizations 1 | . . . . . 1 . . . . . . . . . . . . . . . . . . . . . . . . . Squads Dispatched 58 | . 4 . . . 12 5 3 . . . . 6 . 2 3 . . 3 6 . . . . 11 . . . . 3 . Investigation 24 | . 4 . . . . 1 3 . . . . 5 . 1 1 . . . 3 . . . . 6 . . . . . . Extermination 5 | . . . . . . . . . . . . . . . . . . . 1 . . . . 3 . . . . 1 . Reinforcement 21 | . . . . . 6 2 . . . . . 1 . 1 2 . . 3 2 . . . . 2 . . . . 2 . Assault 3 | . . . . . 1 2 . . . . . . . . . . . . . . . . . . . . . . . . Garrison 5 | . . . . . 5 . . . . . . . . . . . . . . . . . . . . . . . . . Intercept . | . . . . . . . . . . . . . . . . . . . . . . . . . . . . . . . Searches Triggered . | . . . . . . . . . . . . . . . . . . . . . . . . . . . . . . . Construction Impeded 1 | . . . . . . . . . . . . . . . 1 . . . . . . . . . . . . . . . Haulers Reinforced . | . . . . . . . . . . . . . . . . . . . . . . . . . . . . . . . Active Scanning Responses . | . . . . . . . . . . . . . . . . . . . . . . . . . . . . . . . Cargo Convoy Interrupts . | . . . . . . . . . . . . . . . . . . . . . . . . . . . . . . . Stealth | -11 -10 -10 -10 -9 -8 -8 -7 -7 -7 -7 -6 -6 -6 -6 -6 -6 -6 -6 -5 -5 -5 -5 -4 -4 -4 -4 -4 -3 -3 -3 --------- Run | Jun Mat Min Exi Min Mat Sto Fac Low Low Dat Pro Fac Was Fac Ext Cet Arc Hub Fac Upp Upp War Pro Fac Upp Upp Zhi Pro Res Gar Distress Signals 21 | . 2 . . . 9 . 1 . . . . 2 . . 1 3 . 1 1 . . . . 1 . . . . . . Communications Jammed 24 | . . . . . . 24 . . . . . . . . . . . . . . . . . . . . . . . . Distress Signals 24 | . . . . . . 24 . . . . . . . . . . . . . . . . . . . . . . . . Times Spotted 546 | . 25 4 . 12 93 36 13 3 3 4 14 24 . . 40 15 45 14 14 1 12 57 . 56 4 8 . 7 30 12 Peak Tracking Total 18 | . 4 3 . 3 12 7 7 3 3 4 11 2 . 1 11 9 1 11 5 1 5 18 . 9 4 4 . 4 11 11 Tactical Retreats 67 | . 2 . . 1 6 1 5 . . . 5 4 . . 8 2 . 1 4 1 . 4 . 14 . 3 . 2 4 . Traps | -11 -10 -10 -10 -9 -8 -8 -7 -7 -7 -7 -6 -6 -6 -6 -6 -6 -6 -6 -5 -5 -5 -5 -4 -4 -4 -4 -4 -3 -3 -3 ------- Run | Jun Mat Min Exi Min Mat Sto Fac Low Low Dat Pro Fac Was Fac Ext Cet Arc Hub Fac Upp Upp War Pro Fac Upp Upp Zhi Pro Res Gar Traps Triggered 12 | . . . . . 3 . . . . . . 1 . 1 4 . . . 1 . . . . . . . . . 2 . Indirectly . | . . . . . . . . . . . . . . . . . . . . . . . . . . . . . . . Trap Hack Attempts . | . . . . . . . . . . . . . . . . . . . . . . . . . . . . . . . Triggered . | . . . . . . . . . . . . . . . . . . . . . . . . . . . . . . . Disarmed . | . . . . . . . . . . . . . . . . . . . . . . . . . . . . . . . Reprogrammed . | . . . . . . . . . . . . . . . . . . . . . . . . . . . . . . . Reused 6 | . . . . . . . . . . . . . . . . . . . . . . . . . . . . 2 4 . Traps Extracted . | . . . . . . . . . . . . . . . . . . . . . . . . . . . . . . . Installed 8 | . . . . . . . . . . . . . . . . . . . . . . . . . . . . 2 6 . Triggered 13 | . . . . . . . . . . . . . . . . . . . . . . 6 . . . 1 . 2 4 . Most Traps Carried 11 | . . . . . . . . . . . . . . . . . . . . . . . 6 7 11 11 11 11 9 2 Machines | -11 -10 -10 -10 -9 -8 -8 -7 -7 -7 -7 -6 -6 -6 -6 -6 -6 -6 -6 -5 -5 -5 -5 -4 -4 -4 -4 -4 -3 -3 -3 ---------- Run | Jun Mat Min Exi Min Mat Sto Fac Low Low Dat Pro Fac Was Fac Ext Cet Arc Hub Fac Upp Upp War Pro Fac Upp Upp Zhi Pro Res Gar Machines Disabled 31 | . 3 1 . . 5 3 . . . 1 . 5 . 1 2 . 2 3 3 . . . . 2 . . . . . . Max in Single Turn 4 | . 1 1 . . 1 1 . . . 1 . 4 . 1 . . 1 3 3 . . . . 1 . . . . . . Garrison Access 9 | . . . . . . . 2 . . . . 3 . 2 . . . . 1 . . . . 1 . . . . . . Network Hub 1 | . . . . . . . . . . . . . . . . . . 1 . . . . . . . . . . . . Machines Repaired . | . . . . . . . . . . . . . . . . . . . . . . . . . . . . . . . Machines Sabotaged . | . . . . . . . . . . . . . . . . . . . . . . . . . . . . . . . Overloaded Fab Kills . | . . . . . . . . . . . . . . . . . . . . . . . . . . . . . . . Hacking | -11 -10 -10 -10 -9 -8 -8 -7 -7 -7 -7 -6 -6 -6 -6 -6 -6 -6 -6 -5 -5 -5 -5 -4 -4 -4 -4 -4 -3 -3 -3 --------- Run | Jun Mat Min Exi Min Mat Sto Fac Low Low Dat Pro Fac Was Fac Ext Cet Arc Hub Fac Upp Upp War Pro Fac Upp Upp Zhi Pro Res Gar Machines Accessed 129 | . 10 1 2 . 11 6 16 . 1 4 . 23 . 6 7 . . 2 10 . . 4 . 19 1 . 4 . 2 . Terminals 66 | . 7 . . . 8 5 8 . . . . 11 . 1 7 . . 2 5 . . . . 12 . . . . . . Fabricators 16 | . . . . . . . 1 . . . . 5 . 2 . . . . 3 . . . . 5 . . . . . . Repair Stations 11 | . 1 . . . . 1 2 . . . . 3 . 1 . . . . 1 . . . . 1 . . . . 1 . Recycling Units 6 | . 2 . . . 2 . 2 . . . . . . . . . . . . . . . . . . . . . . . Scanalyzers 3 | . . . . . 1 . 1 . . . . 1 . . . . . . . . . . . . . . . . . . Garrison Access 10 | . . . . . . . 2 . . . . 3 . 2 . . . . 1 . . . . 1 . . . . 1 . Total Hacks 389 | . 27 1 2 . 28 16 47 . 1 30 . 58 . 13 13 . . 6 41 . . 10 . 72 1 . 17 . 6 . Successful 280 | . 14 1 2 . 9 8 31 . 1 30 . 41 . 12 10 . . 4 29 . . 10 . 57 1 . 17 . 3 . Failed 108 | . 13 . . . 19 8 16 . . . . 17 . 1 3 . . 2 11 . . . . 15 . . . . 3 . Catastrophic 14 | . . . . . 3 2 2 . . . . 4 . . . . . . 1 . . . . 2 . . . . . . Database Lockouts 1 | . . . . . . . . . . . . . . . . . . . 1 . . . . . . . . . . . Manual 153 | . 22 . 1 . 13 9 20 . . . . 24 . 1 9 1 . 3 20 . . 1 . 29 . . . . . . Terminals 202 | . 22 . . . 24 14 26 . . . . 24 . 2 13 . . 6 24 . . . . 47 . . . . . . Fabricators 63 | . . . . . . . 3 . . . . 21 . 6 . . . . 14 . . . . 19 . . . . . . Repair Stations 29 | . 3 . . . . 2 5 . . . . 7 . 3 . . . . 2 . . . . 4 . . . . 3 . Recycling Units 10 | . 2 . . . 2 . 6 . . . . . . . . . . . . . . . . . . . . . . . Scanalyzers 9 | . . . . . 2 . 4 . . . . 3 . . . . . . . . . . . . . . . . . . Garrison Access 14 | . . . . . . . 3 . . . . 3 . 2 . . . . 1 . . . . 2 . . . . 3 . Terminal Hacks 151 | . 7 1 2 . 4 7 12 . 1 30 . 6 . 2 6 . . 3 15 . . 10 . 27 1 . 17 . . . Record 27 | . . . 1 . . . . . 1 11 . . . . . . . . . . . 9 . . . . 5 . . . Part Schematic 38 | . 2 . . . 1 1 5 . . 10 . 3 . . 1 . . . 4 . . . . 7 . . 4 . . . Robot Schematic 6 | . . . . . . . . . . 6 . . . . . . . . . . . . . . . . . . . . Robot Analysis 6 | . 2 . . . . . . . . . . . . . . . . . . . . . . . . . 4 . . . Prototype ID Bank 17 | . 1 . . . . . 1 . . 3 . 2 . . . . . 1 2 . . . . 3 . . 4 . . . Open Door 8 | . . 1 . . . 1 . . . . . . . . 4 . . . . . . 1 . . 1 . . . . . Branch Access Points 4 | . . . . . . . 1 . . . . . . 1 . . . . 1 . . . . 1 . . . . . . Emergency Access Points 2 | . . . . . . . 1 . . . . . . . . . . . 1 . . . . . . . . . . . Machine Index 4 | . . . . . . . 1 . . . . 1 . . . . . . 1 . . . . 1 . . . . . . Alert Level 2 | . . . . . . 1 . . . . . . . . . . . . . . . . . 1 . . . . . . Unreport Threat 5 | . . . . . 2 1 . . . . . . . . . . . . . . . . . 2 . . . . . . Locate Traps 13 | . 2 . . . . 3 1 . . . . . . . . . . 1 3 . . . . 3 . . . . . . Maintenance Status 1 | . . . . . . . . . . . . . . . . . . . . . . . . 1 . . . . . . Security Status 1 | . . . . . . . . . . . . . . . . . . . . . . . . 1 . . . . . . Recall Investigation 2 | . . . . . . . 1 . . . . . . . . . . . . . . . . 1 . . . . . . Recall Extermination 3 | . . . . . . . . . . . . . . . . . . . 1 . . . . 2 . . . . . . Recall Reinforcements 2 | . . . . . . . . . . . . . . . 1 . . . . . . . . 1 . . . . . . Hauler Manifests 3 | . . . . . 1 . 1 . . . . . . . . . . . 1 . . . . . . . . . . . Registered Components 1 | . . . . . . . . . . . . . . . . . . . 1 . . . . . . . . . . . Registered Prototypes 2 | . . . . . . . . . . . . . . 1 . . . . . . . . . 1 . . . . . . Zone Layout 3 | . . . . . . . . . . . . . . . . . . 1 . . . . . 2 . . . . . . EX-Prototype ID Bank 1 | . . . 1 . . . . . . . . . . . . . . . . . . . . . . . . . . . Fabricator Hacks 43 | . . . . . . . 3 . . . . 14 . 4 . . . . 7 . . . . 15 . . . . . . Network Status 4 | . . . . . . . 1 . . . . 1 . 1 . . . . . . . . . 1 . . . . . . Load Schematic 25 | . . . . . . . 1 . . . . 8 . 2 . . . . 5 . . . . 9 . . . . . . Build 14 | . . . . . . . 1 . . . . 5 . 1 . . . . 2 . . . . 5 . . . . . . Repair Station Hacks 22 | . 2 . . . . 1 2 . . . . 6 . 3 . . . . 2 . . . . 4 . . . . 2 . Scan Component 12 | . 1 . . . . 1 1 . . . . 3 . 2 . . . . 1 . . . . 2 . . . . 1 . Repair 9 | . 1 . . . . . . . . . . 3 . 1 . . . . 1 . . . . 2 . . . . 1 . Refit 1 | . . . . . . . 1 . . . . . . . . . . . . . . . . . . . . . . . Recycling Unit Hacks 2 | . . . . . 1 . 1 . . . . . . . . . . . . . . . . . . . . . . . Retrieve Matter 1 | . . . . . . . 1 . . . . . . . . . . . . . . . . . . . . . . . Retrieve Components 1 | . . . . . 1 . . . . . . . . . . . . . . . . . . . . . . . . . Scanalyzer 7 | . . . . . 2 . 3 . . . . 2 . . . . . . . . . . . . . . . . . . Insert Component 4 | . . . . . 1 . 2 . . . . 1 . . . . . . . . . . . . . . . . . . Analyze 3 | . . . . . 1 . 1 . . . . 1 . . . . . . . . . . . . . . . . . . Garrison Access Hacks 10 | . . . . . . . 2 . . . . 3 . 2 . . . . 1 . . . . 1 . . . . 1 . Unlock Access 1 | . . . . . . . . . . . . . . . . . . . . . . . . . . . . . 1 . Seal Access 9 | . . . . . . . 2 . . . . 3 . 2 . . . . 1 . . . . 1 . . . . . . Unauthorized Hacks 45 | . 5 . . . 2 . 8 . . . . 10 . 1 4 . . 1 4 . . . . 10 . . . . . . Terminals 27 | . 3 . . . 2 . 5 . . . . 5 . . 4 . . 1 1 . . . . 6 . . . . . . Assimilate 6 | . . . . . . . 1 . . . . 2 . . 1 . . . . . . . . 2 . . . . . . Botnet 15 | . 2 . . . 2 . 3 . . . . 3 . . 1 . . . 1 . . . . 3 . . . . . . Detonate 1 | . . . . . . . . . . . . . . . . . . 1 . . . . . . . . . . . . Disrupt 1 | . . . . . . . . . . . . . . . 1 . . . . . . . . . . . . . . . Operators 4 | . 1 . . . . . 1 . . . . . . . 1 . . . . . . . . 1 . . . . . . Fabricators 13 | . . . . . . . . . . . . 5 . 1 . . . . 3 . . . . 4 . . . . . . Prioritize 1 | . . . . . . . . . . . . 1 . . . . . . . . . . . . . . . . . . Recompile 12 | . . . . . . . . . . . . 4 . 1 . . . . 3 . . . . 4 . . . . . . Repair Stations 1 | . . . . . . . 1 . . . . . . . . . . . . . . . . . . . . . . . Mechanics 1 | . . . . . . . 1 . . . . . . . . . . . . . . . . . . . . . . . Recycling Units 4 | . 2 . . . . . 2 . . . . . . . . . . . . . . . . . . . . . . . Reject 1 | . . . . . . . 1 . . . . . . . . . . . . . . . . . . . . . . . Recyclers 1 | . . . . . . . 1 . . . . . . . . . . . . . . . . . . . . . . . Tunnel 2 | . 2 . . . . . . . . . . . . . . . . . . . . . . . . . . . . . Scanalyzers . | . . . . . . . . . . . . . . . . . . . . . . . . . . . . . . . Garrison Access . | . . . . . . . . . . . . . . . . . . . . . . . . . . . . . . . Data Cores Recovered 2 | . 1 . . . . . . . . . . 1 . . . . . . . . . . . . . . . . . . Used 1 | . 1 . . . . . . . . . . . . . . . . . . . . . . . . . . . . . Hacking Detections 82 | . 8 . . . 10 5 14 . . . . 14 . 3 3 1 . 2 5 . . . . 15 . . . . 2 . Full Trace Events 10 | . 3 . . . . 1 3 . . . . 1 . . . . . . . . . . . 2 . . . . . . Feedback Events . | . . . . . . . . . . . . . . . . . . . . . . . . . . . . . . . Feedback Blocked . | . . . . . . . . . . . . . . . . . . . . . . . . . . . . . . . Robot Schematics Acquired 6 | . . . . . . . . . . 6 . . . . . . . . . . . . . . . . . . . . Robots Built . | . . . . . . . . . . . . . . . . . . . . . . . . . . . . . . . Authchips . | . . . . . . . . . . . . . . . . . . . . . . . . . . . . . . . Time . | . . . . . . . . . . . . . . . . . . . . . . . . . . . . . . . Total Robot Build Rating . | . . . . . . . . . . . . . . . . . . . . . . . . . . . . . . . Part Schematics Acquired 40 | . 1 . . . 2 1 6 . . 10 . 4 . . 1 . . . 4 . . . . 7 . . 4 . . . Parts Built 21 | . . . . . . . 2 . . . . 7 . 2 . . . . 4 . . . . 6 . . . . . . Authchips 11 | . . . . . . . . . . . . 4 . 1 . . . . 2 . . . . 4 . . . . . . Time 779 | . . . . . . . 36 . . . . 279 . 106 . . . . 70 . . . . 288 . . . . . . Total Part Build Rating 103 | . . . . . . . 6 . . . . 29 . 12 . . . . 24 . . . . 32 . . . . . . Parts Repaired 9 | . 1 . . . . . . . . . . 3 . 1 . . . . 1 . . . . 2 . . . . 1 . Time 299 | . 36 . . . . . . . . . . 120 . 19 . . . . 56 . . . . 50 . . . . 18 . Parts Recycled . | . . . . . . . . . . . . . . . . . . . . . . . . . . . . . . . Recycled Matter . | . . . . . . . . . . . . . . . . . . . . . . . . . . . . . . . Retrieved Matter . | . . . . . . . . . . . . . . . . . . . . . . . . . . . . . . . Retrieved Components 9 | . . . . . 9 . . . . . . . . . . . . . . . . . . . . . . . . . Parts Scanalyzed 4 | . . . . . 1 . 2 . . . . 1 . . . . . . . . . . . . . . . . . . Part Schematics Acquired 3 | . . . . . 1 . 1 . . . . 1 . . . . . . . . . . . . . . . . . . Parts Damaged . | . . . . . . . . . . . . . . . . . . . . . . . . . . . . . . . Bothacking | -11 -10 -10 -10 -9 -8 -8 -7 -7 -7 -7 -6 -6 -6 -6 -6 -6 -6 -6 -5 -5 -5 -5 -4 -4 -4 -4 -4 -3 -3 -3 ------------ Run | Jun Mat Min Exi Min Mat Sto Fac Low Low Dat Pro Fac Was Fac Ext Cet Arc Hub Fac Upp Upp War Pro Fac Upp Upp Zhi Pro Res Gar Used RIF Installer . | . . . . . . . . . . . . . . . . . . . . . . . . . . . . . . . Robots Hacked 8 | . . 2 . . 1 . 1 . . . . . . . 2 . . . 1 . . 1 . . . . . . . . Non-combat 3 | . . 1 . . . . 1 . . . . . . . . . . . 1 . . . . . . . . . . . Combat 5 | . . 1 . . 1 . . . . . . . . . 2 . . . . . . 1 . . . . . . . . Robot Hacks Applied 9 | . . 2 . . 1 . 1 . . . . . . . 2 1 . . 1 . . 1 . . . . . . . . parse_system 7 | . . 2 . . 1 . . . . . . . . . 2 1 . . . . . 1 . . . . . . . . find_chute 2 | . . . . . . . 1 . . . . . . . . . . . 1 . . . . . . . . . . . Relay Couplers Released . | . . . . . . . . . . . . . . . . . . . . . . . . . . . . . . . Fabnet Peak Effective % . | . . . . . . . . . . . . . . . . . . . . . . . . . . . . . . . Robots Rewired 24 | . . . 3 . . . . . . . . . . . 18 . . . . . . 2 . . . . . . 1 . Allies Hacked . | . . . . . . . . . . . . . . . . . . . . . . . . . . . . . . . Hacks Repelled . | . . . . . . . . . . . . . . . . . . . . . . . . . . . . . . . Allies | -11 -10 -10 -10 -9 -8 -8 -7 -7 -7 -7 -6 -6 -6 -6 -6 -6 -6 -6 -5 -5 -5 -5 -4 -4 -4 -4 -4 -3 -3 -3 -------- Run | Jun Mat Min Exi Min Mat Sto Fac Low Low Dat Pro Fac Was Fac Ext Cet Arc Hub Fac Upp Upp War Pro Fac Upp Upp Zhi Pro Res Gar Total Allies 63 | . . 4 3 . . 2 1 . . . . 2 20 . 25 2 . . . . . 2 . 1 . . . . 1 . Largest Group 20 | . . 4 6 6 . 2 1 . . . . 1 20 . 15 11 . . . . . 2 . 1 . . . . 1 . Highest-Rated Group 742 | . . 71 77 77 . 62 26 . . . . 26 742 . 535 409 . . . . . 108 . 10 . . . . 47 . Highest-Rated Ally 159 | . . 31 21 21 . 31 26 . . . . 26 50 . 159 119 . . . . . 65 . 10 . . . . 47 . Total Orders 95 | . . 2 . . 11 1 16 . . . . 12 . . 45 . . . . . . 2 . 6 . . . . . . STAY 16 | . . 1 . . . . 2 . . . . 8 . . 1 . . . . . . 1 . 3 . . . . . . FOLLOW 11 | . . 1 . . 1 . 1 . . . . 2 . . 2 . . . . . . 1 . 3 . . . . . . EXPLORE 28 | . . . . . 3 . 5 . . . . . . . 20 . . . . . . . . . . . . . . . RETURN 40 | . . . . . 7 1 8 . . . . 2 . . 22 . . . . . . . . . . . . . . . Ally Attacks 430 | . . . . 39 102 30 14 . . . . 7 8 . 187 30 . . . . . 13 . . . . . . . . Total Damage 5848 | . . . . 461 288 377 82 . . . . 24 131 . 3510 504 . . . . . 471 . . . . . . . . Kills 56 | . . . . 14 1 4 1 . . . . . 1 . 32 2 . . . . . 1 . . . . . . . . Allies Corrupted 3 | . . . . . . 1 . . . . . . . . 2 . . . . . . . . . . . . . . . Allies Melted 1 | . . . . . . . . . . . . . . . . 1 . . . . . . . . . . . . . . Intel | -11 -10 -10 -10 -9 -8 -8 -7 -7 -7 -7 -6 -6 -6 -6 -6 -6 -6 -6 -5 -5 -5 -5 -4 -4 -4 -4 -4 -3 -3 -3 ------- Run | Jun Mat Min Exi Min Mat Sto Fac Low Low Dat Pro Fac Was Fac Ext Cet Arc Hub Fac Upp Upp War Pro Fac Upp Upp Zhi Pro Res Gar Robot Analysis Total 6 | . 2 . . . . . . . . . . . . . . . . . . . . . . . . . 4 . . . Derelict Logs Recovered 15 | . . 2 . 1 . . . 1 2 . 2 . . . . . . . . . . . 3 . 3 1 . . . . Drone Launches 68 | . . . . . 17 2 10 . . . . 7 . . 32 . . . . . . . . . . . . . . . Drone Recoveries 65 | . . . . . 16 2 10 . . . . 7 . . 30 . . . . . . . . . . . . . . . Exploration | -11 -10 -10 -10 -9 -8 -8 -7 -7 -7 -7 -6 -6 -6 -6 -6 -6 -6 -6 -5 -5 -5 -5 -4 -4 -4 -4 -4 -3 -3 -3 ------------- Run | Jun Mat Min Exi Min Mat Sto Fac Low Low Dat Pro Fac Was Fac Ext Cet Arc Hub Fac Upp Upp War Pro Fac Upp Upp Zhi Pro Res Gar Turns Passed 25449 | 122 1715 1970 1065 1569 4451 1068 892 349 215 65 396 1451 179 320 658 124 1126 110 747 672 431 714 478 1979 486 1124 216 322 363 72 Spaces Moved 22738 | 55 850 971 586 704 1649 323 1539 658 714 116 681 2946 357 628 741 97 663 114 776 922 587 894 954 2156 618 592 148 264 325 110 Core 631 | 2 . . . . . . . . . . . . . . 6 . 3 5 339 . . . . . . 1 . . 165 110 Treads 1560 | 53 225 14 . . 938 323 . . . . . . . . . . . . . . . . . . . 1 . . 6 . Legs . | . . . . . . . . . . . . . . . . . . . . . . . . . . . . . . . Wheels 3583 | . 625 957 586 704 711 . . . . . . . . . . . . . . . . . . . . . . . . . Hover 7894 | . . . . . . . . . . . . . . . . . 204 109 294 922 587 894 954 2156 618 590 148 264 154 . Flight 9070 | . . . . . . . 1539 658 714 116 681 2946 357 628 735 97 456 . 143 . . . . . . . . . . . Fastest Speed 24 | 50 160 175 175 175 175 225 27 27 25 25 25 24 24 24 25 25 25 44 35 56 58 43 43 38 50 58 61 48 48 50 Average Speed 75 | 156 171 177 175 175 218 232 27 27 26 25 25 26 25 26 28 29 44 59 64 57 58 53 43 47 52 62 77 97 68 50 Slowest Speed 650 | 160 175 320 175 175 480 242 29 27 27 27 27 99 26 27 350 98 450 116 165 58 58 58 43 105 117 650 167 108 350 50 Overloaded Moves 23 | . . . . . . . . . . . . . . . . . . . . . . . . 20 . 3 . . . . Propulsion Burnouts . | . . . . . . . . . . . . . . . . . . . . . . . . . . . . . . . Robots Hopped 54 | . . . . . . . 16 . 2 . . 17 . 2 9 1 7 . . . . . . . . . . . . . Cave-ins Triggered 2 | . . . . . . . . . . . . . . . 1 . . . . . . . . . . 1 . . . . Teleports 1 | . . . . . . . . . . . . . . . . . . . . . . . . . . . . 1 . . Exploration Rate (%) 66 | 4 98 99 89 103 93 55 30 78 87 81 81 65 95 20 70 62 94 19 23 89 83 91 98 45 77 82 60 52 8 21 Regions Visited 30 Branch Regions 20 Pre-discovered Areas 11 | . 2 . 1 . . . . . 1 1 1 . . . . . . . . . . . 1 . 1 . 3 . . . Known Exits Taken 23 | . . . . . 1 1 1 1 1 1 1 . . 1 1 1 1 1 1 1 1 1 1 1 1 1 1 1 1 . Unknown Exits Taken 5 | 1 1 1 1 1 . . . . . . . . . . . . . . . . . . . . . . . . . . Scrap Searched 33 | . . 2 . 4 . . . 2 4 . 2 . . . . . . . . 2 4 . 4 . 4 4 . 1 . . Spaces Dug 432 | . . 8 . 13 27 1 39 3 6 1 27 95 . 8 11 20 . 7 16 6 40 10 . 47 18 6 . 21 2 . Terrain Destroyed 1328 | . 16 44 . 18 64 39 39 42 6 1 27 113 . 8 11 36 2 191 36 8 79 104 4 256 32 76 . 74 2 . Melee 153 | . . . . . 1 1 39 3 6 1 7 60 . 8 10 . . . . . . . . 9 . 6 . . 2 . Projectile 134 | . . . . 3 5 . . . . . . . . . 1 . 2 14 16 8 12 12 4 57 . . . . . . AOE 1041 | . 16 44 . 15 58 38 . 39 . . 20 53 . . . 36 . 177 20 . 67 92 . 190 32 70 . 74 . . Terrain Rammed . | . . . . . . . . . . . . . . . . . . . . . . . . . . . . . . . Walls Destroyed . | . . . . . . . . . . . . . . . . . . . . . . . . . . . . . . . Machines Disabled . | . . . . . . . . . . . . . . . . . . . . . . . . . . . . . . . Actions | -11 -10 -10 -10 -9 -8 -8 -7 -7 -7 -7 -6 -6 -6 -6 -6 -6 -6 -6 -5 -5 -5 -5 -4 -4 -4 -4 -4 -3 -3 -3 --------- Run | Jun Mat Min Exi Min Mat Sto Fac Low Low Dat Pro Fac Was Fac Ext Cet Arc Hub Fac Upp Upp War Pro Fac Upp Upp Zhi Pro Res Gar Total 29281 | 74 998 1108 613 1027 2179 528 1903 804 724 142 886 3453 444 766 1131 171 1283 140 999 1045 650 1107 1004 2979 774 1327 190 302 408 122 Wait 4541 | . 46 54 . 279 196 70 253 117 . 19 176 359 74 119 308 52 451 5 122 109 32 154 31 650 130 700 . 8 27 . Move 22607 | 54 849 970 585 703 1648 322 1508 657 709 115 680 2913 356 623 723 94 649 113 775 921 586 893 953 2155 617 591 147 263 325 110 Hop 49 | . . . . . . . 14 . 2 . . 16 . 2 8 1 6 . . . . . . . . . . . . . Pick Up 181 | 4 22 6 4 12 26 11 14 1 . . 2 15 1 3 . 2 7 2 3 1 1 2 2 24 2 6 4 . 4 . Fast Attach 147 | 7 2 . . . 10 10 14 5 2 . . 8 5 3 4 3 15 . 16 . . 9 . 8 4 2 4 1 5 10 Attach 113 | . 2 . . . 19 8 4 1 . 1 5 8 . 1 . . 6 2 21 . . 1 . 11 1 5 4 5 7 1 Detach 65 | . . . . . 3 1 2 . 1 1 4 3 1 1 1 . 7 . 20 . . 1 . 6 2 4 . 3 3 1 Swap 239 | 2 14 14 1 8 52 14 17 2 2 . 9 20 2 2 8 3 7 1 4 4 12 3 5 18 9 . 2 4 . . Drop 201 | . 4 4 4 14 33 17 28 5 2 . 2 12 5 3 2 5 15 1 7 . 1 10 1 14 5 5 . 1 1 . Fire 702 | 6 59 51 5 11 161 48 . 4 . . 1 7 . . 3 9 114 16 30 10 18 25 12 75 3 5 25 4 . . Melee 353 | . . 2 13 . 6 26 49 12 6 6 7 92 . 9 56 2 6 . 1 . . 7 . 18 1 9 4 11 10 . Ram 19 | . . 3 . . . . . . . . . . . . . . . . . . . . . . . . . . 16 . Kick . | . . . . . . . . . . . . . . . . . . . . . . . . . . . . . . . Crush 34 | 1 . 4 . . 25 1 . . . . . . . . . . . . . . . . . . . . . . 3 . Escape Stasis 18 | . . . . . . . . . . . . . . . 18 . . . . . . . . . . . . . . . Rewire 4 | . . . 1 . . . . . . . . . . . . . . . . . . 2 . . . . . . 1 . Trap 8 | . . . . . . . . . . . . . . . . . . . . . . . . . . . . 2 6 . Miscellaneous . | . . . . . . . . . . . . . . . . . . . . . . . . . . . . . . . Route ------- -11/Junkyard -10/Materials (discovered 4 exits: [*Mat x3] / *Min) -10/Mines (discovered 3 exits: [*Mat x2] / *Exi) -10/Exiles -9/Mines (discovered 2 exits: *Mat x2) -8/Materials (discovered 4 exits: *Fac x2 / *Sto x2) -8/Storage (discovered 2 exits: *Fac / [*Rec]) -7/Factory (discovered 2 exits: *Low x2) -7/Lower Caves -7/Lower Caves -7/Data Miner -6/Proximity Caves -6/Factory (discovered 4 exits: *Fac / *Low x2 / *Ext) -6/Waste -6/Factory (discovered 4 exits: Low x2 / *Ext x2) -6/Extension (discovered 2 exits: *Fac / *Cet) -6/Cetus -6/Archives (discovered 3 exits: *Fac / *Hub x2) -6/Hub_04(d) -5/Factory (discovered 3 exits: *Fac / *Upp x2) -5/Upper Caves -5/Upper Caves (discovered 2 exits: *Fac / *War) -5/Warlord -4/Proximity Caves -4/Factory (discovered 4 exits: *Res x2 / *Upp x2) -4/Upper Caves -4/Upper Caves (discovered 2 exits: *Res / *Zhi) -4/Zhirov -3/Proximity Caves -3/Research (discovered 2 exits: Tes / Gar) -3/Garrison History --------- Turn | Location | Event 31 | -11/Junkyard | Discovered new exit (range 16) 123 | -11/Junkyard | Entered Materials 304 | -10/Materials | Build established: Mutant 536 | -10/Materials | Discovered new exit (range 16) 739 | -10/Materials | Discovered new exit (range 6) 918 | -10/Materials | Discovered new exit (range 13) 1126 | -10/Materials | Repaired Corrupted Datajack? 1337 | -10/Materials | Discovered new exit (range 9) 1838 | -10/Materials | Entered Mines 1844 | -10/Mines | YI-UF0 nonchalantly dropped a Grenade Launcher on the ground 1969 | -10/Mines | Destroyed YI-UF0 1979 | -10/Mines | Found YI-UF0's Doublenader 1981 | -10/Mines | Found YI-UF0's Bottomless Matter Pit 2127 | -10/Mines | Found the Drone Emporium 2135 | -10/Mines | Found Prototype Device 2136 | -10/Mines | Identified Thief Drone Bay 2158 | -10/Mines | Discovered new exit (range 8) 2254 | -10/Mines | Deemed a non-threat by the Exiles lab entrance 2254 | -10/Mines | Discovered new exit (range 5) 2443 | -10/Mines | Learned 2 Materials zone layouts 2446 | -10/Mines | Learned Materials terminal intel 2629 | -10/Mines | Assisted by bots powering up and referring to "LRC-V3" 3327 | -10/Mines | Discovered new exit (range 10) 3347 | -10/Mines | Received a Mining Laser from a helpful Derelict 3808 | -10/Mines | Entered Exiles 3808 | -10/Exiles | Found Exiles lab destroyed 3808 | -10/Exiles | Accompanied by 3 allies 3973 | -10/Exiles | Learned location of Zion (-6) 4166 | -10/Exiles | Build established: Commander-Mutant 4354 | -10/Exiles | Opened EX-Vault 4539 | -10/Exiles | Discovered new exit (range 14) 4873 | -10/Exiles | Entered Mines 4873 | -9/Mines | Accompanied by 6 allies 4874 | -9/Mines | Met a Derelict testing a Signal Generator 4879 | -9/Mines | Found Signal Generator 4898 | -9/Mines | Discovered new exit (range 10) 5316 | -9/Mines | Joined a pair of Derelicts in attacking an 0b10 outpost 5435 | -9/Mines | Assembled infested the area 5437 | -9/Mines | Build established: Mutant 6419 | -9/Mines | Discovered new exit (range 8) 6442 | -9/Mines | Entered Materials 6442 | -8/Materials | Evolved 4 slots: Propulsion x2, Utility x2 6443 | -8/Materials | Identified exit to Storage 6444 | -8/Materials | Identified exit to Factory 6445 | -8/Materials | Loaded intel: 12 terminal locations 6464 | -8/Materials | Garrison activated, responded to threat 6639 | -8/Materials | Lost 3 parts (1u2w) 6667 | -8/Materials | Destroyed 7 combat bots 6938 | -8/Materials | Build established: Scavenger-Mutant 7222 | -8/Materials | Discovered exit to Factory (range 16) 7373 | -8/Materials | Garrison activated, responded to threat 7477 | -8/Materials | Build established: Mutant 8354 | -8/Materials | Garrison activated, responded to threat 8432 | -8/Materials | Lost 5 parts (1p2n1u1w) 8615 | -8/Materials | Discovered exit to Storage (range 14) 10442 | -8/Materials | First assault squad dispatched 10581 | -8/Materials | Sterilization system engaged 10581 | -8/Materials | Non-combat units ordered to evacuate 10681 | -8/Materials | Combat units ordered to evacuate 10881 | -8/Materials | Ambient heat levels rising (+10) 10893 | -8/Materials | Entered Storage 11369 | -8/Storage | Used back door to open Recycling access 11369 | -8/Storage | Discovered new exit (range 5) 11873 | -8/Storage | Met a pair of Derelict thieves 11917 | -8/Storage | Discovered exit to Factory (range 18) 11961 | -8/Storage | Entered Factory 11961 | -7/Factory | Evolved 2 slots: Propulsion x1, Utility x1 12071 | -7/Factory | Discovered new exit (range 17) 12165 | -7/Factory | Identified exit to Lower Caves 12179 | -7/Factory | Build established: Scout 12305 | -7/Factory | Found Prototype Launcher 12315 | -7/Factory | Identified Rocket Array 12798 | -7/Factory | Fabricated Katana? 12853 | -7/Factory | Entered Lower Caves 12933 | -7/Lower Caves | Spotted B-75 Beast 13134 | -7/Lower Caves | Learned Factory trap positions 13176 | -7/Lower Caves | Discovered new exit (range 9) 13178 | -7/Lower Caves | Identified exit to Lower Caves 13202 | -7/Lower Caves | Entered another Lower Caves area 13342 | -7/Lower Caves | Encountered a Warlord checkpoint 13352 | -7/Lower Caves | Learned 4 Factory zone layouts 13385 | -7/Lower Caves | Learned location of Extension (-6) 13416 | -7/Lower Caves | Discovered new exit (range 5) 13417 | -7/Lower Caves | Identified exit to Data Miner 13417 | -7/Lower Caves | Entered Data Miner 13417 | -7/Data Miner | Discovered new exit (range 6) 13421 | -7/Data Miner | Met Data Miner 13428 | -7/Data Miner | Learned location of Section 7 (-2) 13428 | -7/Data Miner | Acquired the access code to Warlord's prototype stash 13432 | -7/Data Miner | Received God Mode back door access code from Data Miner 13455 | -7/Data Miner | Data Conduit disabled 13482 | -7/Data Miner | Identified exit to Proximity Caves 13482 | -7/Data Miner | Entered Proximity Caves 13560 | -6/Proximity Caves | Learned Factory terminal intel 13695 | -6/Proximity Caves | Spotted B-75 Beast 13791 | -6/Proximity Caves | Attracted the attention of an 0b10 checkpoint 13872 | -6/Proximity Caves | Discovered new exit (range 5) 13878 | -6/Proximity Caves | Identified exit to Factory 13878 | -6/Proximity Caves | Entered Factory 13878 | -6/Factory | Evolved 2 slots: Utility x2 13880 | -6/Factory | Loaded intel: 116 trap records 13881 | -6/Factory | Loaded intel: 27 terminal locations 14036 | -6/Factory | Fabricated Plasma Cutter? 14054 | -6/Factory | Repaired Lgt. Nuclear Core 14080 | -6/Factory | Discovered new exit (range 19) 14179 | -6/Factory | Found Launcher Loader 14183 | -6/Factory | Repaired Imp. Light Armor Plating? 14196 | -6/Factory | Repaired Hvy. Missile Launcher? 14363 | -6/Factory | Build established: Hacker-Scout 14531 | -6/Factory | Discovered new exit (range 6) 14533 | -6/Factory | Identified exit to Lower Caves 14548 | -6/Factory | Discovered new exit (range 18) 14823 | -6/Factory | Fabricated Adv. Hacking Suite (x1) 14930 | -6/Factory | Fabricated Adv. Hacking Suite? 15077 | -6/Factory | Discovered new exit (range 17) 15158 | -6/Factory | Fabricated Prc. Rocket Launcher (x1) 15213 | -6/Factory | Fabricated Adv. Hacking Suite (x1) 15329 | -6/Factory | Manually triggered Chute Trap 15329 | -6/Factory | Sucked down chute 15329 | -6/Factory | Entered Waste 15330 | -6/Waste | Joined by Warlord forces that had cleared the area 15367 | -6/Waste | Discovered new exit (range 13) 15480 | -6/Waste | A Compactor rumbled back to life 15480 | -6/Waste | Spotted C-40 Crusher 15483 | -6/Waste | Allies destroyed C-40 Crusher 15508 | -6/Waste | Identified exit to Factory 15508 | -6/Waste | Entered Factory 15552 | -6/Factory | Identified exit to Extension 15682 | -6/Factory | Fabricated Adv. System Restoration Module (x2) 15820 | -6/Factory | Repaired Lgt. Nuclear Core 15828 | -6/Factory | Entered Extension 16008 | -6/Extension | Rescued a captive Derelict 16009 | -6/Extension | Rescued a captive Derelict 16111 | -6/Extension | Build established: Hacker-Sprinter 16111 | -6/Extension | Crushed by falling debris 16122 | -6/Extension | Rescued a captive Derelict 16130 | -6/Extension | Rescued A7 16322 | -6/Extension | Rescued a captive Derelict 16322 | -6/Extension | Rescued a captive Derelict 16406 | -6/Extension | Discovered new exit (range 10) 16406 | -6/Extension | Discovered new exit (range 6) 16408 | -6/Extension | Identified exit to Cetus 16408 | -6/Extension | Identified exit to Factory 16453 | -6/Extension | Disrupted transfer network 16479 | -6/Extension | Disrupted transfer network 16479 | -6/Extension | P-60 Hacker assimilated allied Technician 5a 16486 | -6/Extension | Entered Cetus 16486 | -6/Cetus | Accompanied by 11 allies (A7) 16491 | -6/Cetus | Acquired a Cetus Manufacturing Module code from A7 16495 | -6/Cetus | Spotted Cetus Guard 16495 | -6/Cetus | Spotted Cetus Guard 16495 | -6/Cetus | Spotted Cetus Guard 16495 | -6/Cetus | Spotted Cetus Guard 16503 | -6/Cetus | Allies destroyed Cetus Guard 16523 | -6/Cetus | Destroyed A7 16525 | -6/Cetus | Extracted ID and sensor layout for unrecognized location from A7's data core 16528 | -6/Cetus | Allies destroyed Cetus Guard 16532 | -6/Cetus | Found Med. Regenerative Plating 16546 | -6/Cetus | Started Cetus Manufacturing Module 16547 | -6/Cetus | Discovered new exit (range 21) 16565 | -6/Cetus | Identified exit to Archives 16571 | -6/Cetus | Manufactured an Enhanced Grunt 16596 | -6/Cetus | Manufactured an Enhanced Grunt 16610 | -6/Cetus | Entered Archives 16928 | -6/Archives | Discovered new exit (range 22) 16974 | -6/Archives | Build established: Hacker-Mutant 17038 | -6/Archives | Discovered new exit (range 22) 17049 | -6/Archives | Discovered exit to Factory (range 22) 17287 | -6/Archives | Build established: Hacker-Sprinter 17518 | -6/Archives | Identified exit to Hub_04(d) 17736 | -6/Archives | Entered Hub_04(d) 17792 | -6/Hub_04(d) | Discovered exit to Factory (range 12) 17827 | -6/Hub_04(d) | Network Hub disabled 17829 | -6/Hub_04(d) | Spotted Lightning 17829 | -6/Hub_04(d) | Spotted Lightning 17831 | -6/Hub_04(d) | Spotted Lightning 17836 | -6/Hub_04(d) | Spotted B-75 Beast 17843 | -6/Hub_04(d) | Core integrity fell below 50% 17846 | -6/Hub_04(d) | Entered Factory 17846 | -5/Factory | Evolved 2 slots: Propulsion x1, Utility x1 17874 | -5/Factory | Lost 10 parts (1p5n2u2w) 18000 | -5/Factory | Identified exit to Upper Caves 18000 | -5/Factory | Central database locked down 18021 | -5/Factory | Discovered new exit (range 16) 18085 | -5/Factory | Identified exit to Factory 18346 | -5/Factory | Fabricated Cmb. Gravmag System (x2) 18382 | -5/Factory | Fabricated Cmb. Gravmag System (x2) 18556 | -5/Factory | Repaired Cmb. Gravmag System 18593 | -5/Factory | Entered Upper Caves 18838 | -5/Upper Caves | Build established: Hacker-Scout 19029 | -5/Upper Caves | Spotted B-75 Beast 19106 | -5/Upper Caves | Discovered new exit (range 8) 19109 | -5/Upper Caves | Identified exit to Upper Caves 19265 | -5/Upper Caves | Entered another Upper Caves area 19316 | -5/Upper Caves | Discovered exit to Factory (range 8) 19605 | -5/Upper Caves | Spotted B-75 Beast 19688 | -5/Upper Caves | Discovered new exit (range 14) 19695 | -5/Upper Caves | Identified exit to Warlord 19696 | -5/Upper Caves | Entered Warlord 19773 | -5/Warlord | Learned Factory terminal intel 19773 | -5/Warlord | Learned Factory recycling unit intel 19773 | -5/Warlord | Learned Research fabricator intel 19773 | -5/Warlord | Learned 4 Research zone layouts 19773 | -5/Warlord | Learned 4 Testing zone layouts 19773 | -5/Warlord | Learned 4 Command zone layouts 19774 | -5/Warlord | Learned Research emergency access door positions 19774 | -5/Warlord | Learned Quarantine emergency access door positions 19774 | -5/Warlord | Learned Research stockpile data 20025 | -5/Warlord | Met Warlord 20034 | -5/Warlord | Warlord's base attacked by MAIN.C 20038 | -5/Warlord | Opened Warlord's prototype stash 20047 | -5/Warlord | Found Prototype Processor 20047 | -5/Warlord | Identified Exp. Target Analyzer 20050 | -5/Warlord | Found Prototype Device 20050 | -5/Warlord | Identified Exp. Focal Shield 20098 | -5/Warlord | Found Prototype Special Weapon 20098 | -5/Warlord | Identified RU-N14's Throwing Claymores v3 20101 | -5/Warlord | Found RU-N14's Throwing Claymores v3 20302 | -5/Warlord | Warlord forces counterattacked 20355 | -5/Warlord | Spotted Executioner 20355 | -5/Warlord | Spotted Executioner 20359 | -5/Warlord | Spotted Striker 20393 | -5/Warlord | Destroyed 15 combat bots 20405 | -5/Warlord | Discovered new exit (range 13) 20409 | -5/Warlord | Identified exit to Proximity Caves 20410 | -5/Warlord | Entered Proximity Caves 20411 | -4/Proximity Caves | Learned location of Testing (-3) 20463 | -4/Proximity Caves | Learned 4 Research zone layouts 20554 | -4/Proximity Caves | Learned 4 Research zone layouts 20580 | -4/Proximity Caves | Discovered exit to Factory (range 5) 20888 | -4/Proximity Caves | Entered Factory 20888 | -4/Factory | Evolved 2 slots: Power x1, Utility x1 20889 | -4/Factory | Loaded intel: 26 terminal locations 20890 | -4/Factory | Loaded intel: 6 recycling unit locations 20912 | -4/Factory | Identified exit to Upper Caves 20938 | -4/Factory | Fabricated Mak. Sensor Array? 21157 | -4/Factory | Spotted B-86 Titan 21276 | -4/Factory | Discovered new exit (range 12) 21451 | -4/Factory | Fabricated Lrg. Storage Unit? 22160 | -4/Factory | Repaired Cmb. Gravmag System 22183 | -4/Factory | Repaired Lyr. Light Armor Plating 22195 | -4/Factory | Discovered new exit (range 21) 22203 | -4/Factory | Fabricated Exp. Signal Interpreter? 22397 | -4/Factory | Fabricated Adv. Transmission Jammer? 22605 | -4/Factory | Fabricated Launcher Loader? 22867 | -4/Factory | Entered Upper Caves 23046 | -4/Upper Caves | Build established: Machinist-Ninja 23092 | -4/Upper Caves | Learned Research garrison access intel 23231 | -4/Upper Caves | Learned location of Armory (-3) 23255 | -4/Upper Caves | Discovered new exit (range 14) 23278 | -4/Upper Caves | Identified exit to Upper Caves 23353 | -4/Upper Caves | Entered another Upper Caves area 23372 | -4/Upper Caves | Discovered new exit (range 8) 23394 | -4/Upper Caves | Lost 5 parts (1p1n1u2w) 23402 | -4/Upper Caves | Encountered a Warlord checkpoint 23412 | -4/Upper Caves | Learned 12 Research zone layouts 24402 | -4/Upper Caves | Crushed by falling debris 24451 | -4/Upper Caves | Lost 3 parts (3u) 24474 | -4/Upper Caves | Discovered new exit (range 7) 24476 | -4/Upper Caves | Identified exit to Zhirov 24477 | -4/Upper Caves | Entered Zhirov 24477 | -4/Zhirov | Discovered new exit (range 3) 24488 | -4/Zhirov | Met Zhirov 24502 | -4/Zhirov | Learned location of Quarantine (-2) 24502 | -4/Zhirov | Learned location of Command (-1) 24506 | -4/Zhirov | Zhirov requested help retrieving the SGEMP Prototype 24515 | -4/Zhirov | Found Alien Artifact 24515 | -4/Zhirov | Identified Integrated Reactor 24515 | -4/Zhirov | Installed Integrated Reactor, increased core energy generation (+10) 24524 | -4/Zhirov | Found Alien Artifact 24686 | -4/Zhirov | Build established: Hacker-Mutant 24690 | -4/Zhirov | Identified exit to Proximity Caves 24693 | -4/Zhirov | Entered Proximity Caves 24763 | -3/Proximity Caves | Attracted the attention of an 0b10 checkpoint 24775 | -3/Proximity Caves | Identified Transdimensional Reconstructor 24775 | -3/Proximity Caves | Warped through subspace 24822 | -3/Proximity Caves | Spotted B-86 Titan 24895 | -3/Proximity Caves | Core integrity fell below 50% 24908 | -3/Proximity Caves | System corruption reached 10% 24941 | -3/Proximity Caves | Discovered new exit (range 13) 24953 | -3/Proximity Caves | Identified exit to Research 25015 | -3/Proximity Caves | Entered Research 25015 | -3/Research | Evolved 2 slots: Propulsion x1, Utility x1 25016 | -3/Research | Identified exit to Testing 25020 | -3/Research | Loaded intel: 4 fabricator locations 25021 | -3/Research | Loaded intel: 3 garrison access locations 25042 | -3/Research | Repaired Cmb. Gravmag System 25153 | -3/Research | Lost 6 parts (4n1u1w) 25230 | -3/Research | Lost 4 parts (1p1n1u1w) 25259 | -3/Research | Released all parts (1) 25353 | -3/Research | Core integrity fell below 50% 25367 | -3/Research | Core integrity fell below 20% 25369 | -3/Research | System corruption reached 10% 25378 | -3/Research | Identified exit to Garrison 25378 | -3/Research | Entered Garrison 25381 | -3/Garrison | Lost 4 parts (2n1u1w) 25384 | -3/Garrison | Found Antimissile System 25447 | -3/Garrison | Spotted B-86 Titan 25447 | -3/Garrison | Triggered checkpoint 25450 | -3/Garrison | Destroyed by H-77 Assassin with High-powered Shotgun Last Messages --------------- 25360_ Acquired Prototype Device. 25360_ Identified Imp. Energy Mantle. 25362_ Dropped Imp. Energy Mantle. 25376_ System corrupted: Energy discharge (-23). 25378_ Connecting with Garrison Access... >>Unlock Access door unlocked. 25378_ EXIT=UNLOCKED: GARRISON LOCATION=GARRISON GOAL=ESCAPE 25384_ Acquired Antimissile System. 25399_ Acquired Authchip [R/Combat]. 25407_ System corrupted: Matter fused (-6). 25407_ Acquired Authchip [R/Combat]. 25424_ System corrupted: Component data lost. 25442_ System corrupted: Substantial component data lost. 25447_ Slug penetrates Wall. 25447_ Authchip [R/Combat] destroyed. 25447_ Beams of light sweep through the air. An alarm sounds. 25449_ Authchip [R/Combat] destroyed. Map ----- +----------------------------------------------------+ | ?????????????????????????????????????????????????? | | ?????????????????????????????????????????????????? | | ?????????????????????????????????????????????????? | | ?????????????????????????????????????????????????? | | ?????????????????????????????????????????????????? | | ?????????????????????????????????????????????????? | | ?????????????????????????????????????????????????? | | ?????????????????????????????????????????????????? | | ?????????????????????????????????????????????????? | | ????????????????????? ??????????????????????????? | | ????????????????????? #?????????????????????????? | | ????????????????????? #?????????????????????????? | | ???????????????????## ##""""##??????????????????? | | ??????????????????## ? ? ??????????????? | | ??????????????????? ? ?? ?????????????? | | ??????????????????? ? ? ??????????????? | | ???????????????????# #? #? #??????????????? | | ?????????????????### ## ## #??????????????? | | ???????????????### "??????????????? | | ???????????????? + BB "??????????????? | | ?????????????????# BB ???????????????? | | ?????????????????? s h ?????????????????? | | ???????????????????#s #; #????#??????????????? | | ?????????########### s ## ## h#??????????????? | | ?????????# #??????????????? | | ?????????# @ #??????????????? | | ?????????# ######## #??????????????? | | ?????????# #??????## ##""""## #??????????????? | | ?????????# #???????# #??????????#??????????????? | | ########## #???????# #?????????????????????????? | | #???????# #?????????????????????????? | | ######### #???????# #?????????????????????????? | | ????????# #???????# #?????????????????????????? | | ?????????# ######### #?????????????????????????? | | ?????????# #?????????????????????????? | | ?????????# #?????????????????????????? | | ?????????# ############?????????????????????????? | | ?????????# #????????????????????????????????????? | | ?????????# #????????????????????????????????????? | | ?????????# #????????????????????????????????????? | | ?????????# #????????????????????????????????????? | | ?????????# #????????????????????????????????????? | | ?????????# #????????????????????????????????????? | | ?????????# #????????????????????????????????????? | | ?????????# #????????????????????????????????????? | | ?????????# #????????????????????????????????????? | | ########## #????????????????????????????????????? | | #????????????????????????????????????? | | #????????????????????????????????????? | | # ###### #????????????????????????????????????? | +----------------------------------------------------+ Best States ------------- Heat Dissipation 74 Energy Generation 35 Energy Capacity 985 Matter Stores 1780 Matter Capacity 1800 Sight Range 22 Robot Scan Range 19 Terrain Scan Range 16 Terrain Scan Density 10 ECM Strength 2 Jamming Range 16 Armor Coverage 600 Resistance: TH 10 Utility Shielding 66 Weapon Shielding 90 Evasion (%) 66 Targeting Accuracy 8 Recoil Reduction 6 Energy Filtering 30 Offensive Hacking 53 Defensive Hacking 10 Authchip Count 9 Trap Extractor Capacity 8 Item Schematics ----------------- Huge Storage Unit | -10/Materials | Hacked Plasma Cutter | -8/Materials | Hacked Mak. Sensor Array | -8/Materials | Scanalyzed Imp. Utility Shielding | -8/Storage | Hacked Rocket Array | -7/Factory | Scanalyzed Imp. Flight Unit | -7/Factory | Hacked Hvy. Missile Launcher | -7/Factory | Hacked Imp. Propulsion Shielding | -7/Factory | Hacked Katana | -7/Factory | Hacked System Guard | -7/Factory | Hacked Combat Drone Bay | -7/Data Miner | Free Lgt. Regenerative Plating | -7/Data Miner | Free Cld. Cesium-ion Thruster | -7/Data Miner | Free Gravity Neutralizer | -7/Data Miner | Free Force Rifle | -7/Data Miner | Free Gyrokinetic Inverter | -7/Data Miner | Free Adv. System Restoration Module | -7/Data Miner | Free Disruptor Cannon | -7/Data Miner | Free Imp. Shock Absorption System | -7/Data Miner | Free Adv. Power Amplifier | -7/Data Miner | Free Lgt. Antimatter Reactor | -6/Factory | Hacked Adv. Hacking Suite | -6/Factory | Hacked Launcher Loader | -6/Factory | Scanalyzed Exp. Utility Shielding | -6/Factory | Hacked Cld. VTOL Module | -6/Extension | Hacked Graphene Brace | -5/Factory | Hacked Cld. Nuclear Pulse Thruster | -5/Factory | Hacked Lrn. Missile Launcher | -5/Factory | Hacked Cmb. Gravmag System | -5/Factory | Hacked Lrg. Storage Unit | -4/Factory | Hacked Prc. Matter Filter | -4/Factory | Hacked Antimissile System | -4/Factory | Hacked Quantum Capacitor | -4/Factory | Hacked Exp. Signal Interpreter | -4/Factory | Hacked Adv. Transmission Jammer | -4/Factory | Hacked Exp. Cooling System | -4/Factory | Hacked Assault Drone Bay | -4/Zhirov | Free Exp. Heat Sink | -4/Zhirov | Free Exp. Optical Array | -4/Zhirov | Free Imp. Arc Thrower | -4/Zhirov | Free Robot Schematics ------------------ E-15 Imp | -7/Data Miner | Free W-25 Informer | -7/Data Miner | Free A-15 Conveyor | -7/Data Miner | Free B-48 Gladiator | -7/Data Miner | Free X-62 Marksman | -7/Data Miner | Free P-70 Sage | -7/Data Miner | Free Fabricated ------------ Katana | x2 | -7/Factory Plasma Cutter | x3 | -6/Factory | Authchip Adv. Hacking Suite | x1 | -6/Factory | Authchip Adv. Hacking Suite | x1 | -6/Factory | Authchip Prc. Rocket Launcher | x1 | -6/Factory | Preloaded Adv. Hacking Suite | x1 | -6/Factory | Authchip Adv. System Restoration Module | x2 | -6/Factory | Authchip Cmb. Gravmag System | x2 | -5/Factory | Authchip Cmb. Gravmag System | x2 | -5/Factory | Authchip Mak. Sensor Array | x1 | -4/Factory | Authchip Lrg. Storage Unit | x1 | -4/Factory | Authchip Exp. Signal Interpreter | x1 | -4/Factory | Authchip Adv. Transmission Jammer | x1 | -4/Factory | Authchip Launcher Loader | x2 | -4/Factory Alien Tech Used ----------------- Integrated Reactor Transdimensional Reconstructor Achievements -------------- None Challenges ------------ None Game ------ Seed BarragePhaseBroadsword Manual? 0 Play Time 08:40:08 Cumulative 382.0 hours Start 2023.01.18 @ 16:53:42 End 2023.01.23 @ 12:54:21 Sessions 47 Manual Loads 0 Difficulty Rogue Special Mode None Game No. 168 Rogue 168 Adventurer 0 Explorer 0 Win Type - Total 9 Types 6/0/1/1/0/0/0/1/0 Lore% 89 Gallery% 91 Achievement% 71 Wizard Run 0 Options --------- ASCII 1 Keyboard 1 Movement Vi Keybinds 0 Fullscreen 2 Font 18/Cog Map View 76x50 Tactical HUD 1 Map Filters NONE Filters NONE Steam 0 RUN: 8355fd3c-697a-4d1b-8cb2-8f3795e7948f